bitfinex-derivatives/quotes_ETHF0:USTF0_20241228
["timestamp","ask_amount","ask_price","bid_price","bid_amount"]
[1735378974072,0.29856,3354.9,3354.8,41.2602]
[1735378974571,0.29856,3354.9,3354.8,40.8]
[1735378975978,0.74803955,3355.0,3354.7,0.29857]
[1735378976171,1.04660955,3354.8,3354.7,0.29857]
[1735378979478,0.29858,3354.7,3354.6,1.21938]
[1735378979672,0.76078,3354.7,3354.6,1.21938]
[1735378980576,0.4622,3354.7,3354.6,1.21938]
[1735378980878,0.4622,3354.7,3354.6,0.9208]
[1735378981077,0.76078,3354.7,3354.6,7.26618957]
[1735378981380,1.04661955,3354.8,3354.7,0.29858]
[1735378981772,0.29858,3354.7,3354.6,7.56476957]
[1735378981976,0.29858,3354.7,3354.6,1.21938]
[1735378986883,0.29857,3354.8,3354.7,0.29857]
[1735378987285,0.29857,3354.8,3354.7,0.29858]
[1735378989377,0.29857,3354.8,3354.7,0.75078]
[1735378989577,0.4622,3355.0,3354.7,0.4522]
[1735378989779,0.29856,3354.9,3354.8,0.29857]
[1735378991179,0.29856,3354.9,3354.8,13.67306822]
[1735378997390,0.76075,3355.0,3354.9,0.29856]
[1735378997580,0.29856,3354.9,3354.8,0.29856]
[1735378997781,0.29857,3354.8,3354.7,0.75077]
[1735378997977,1.04660955,3354.8,3354.7,0.75077]
[1735379004695,0.74803955,3354.8,3354.6,0.9208]
[1735379004885,0.29858,3354.7,3354.6,8.24213475]
[1735379006197,0.29858,3354.7,3354.6,14.59360642]
[1735379012703,0.29858,3354.7,3354.6,1.21938]
[1735379016215,1.04661955,3354.7,3354.6,0.9208]
[1735379016705,1.04661955,3354.7,3354.6,0.4602]
[1735379019120,1.04661955,3354.7,3354.6,13.83509981]
[1735379023021,1.04661955,3354.7,3354.6,13.37489981]
[1735379024323,0.29859,3354.6,3354.5,4.68326141]
[1735379024524,1.49822955,3354.6,3354.5,4.68326141]
[1735379026927,0.29859,3354.5,3354.4,4.68326141]
[1735379027123,1.04662955,3354.5,3354.4,4.68326141]
[1735379029923,0.74803955,3354.5,3354.3,0.4447]
[1735379030124,0.2986,3354.4,3354.3,0.9006]
[1735379030528,0.2986,3354.4,3354.3,41.7006]
[1735379030733,0.2986,3354.4,3354.3,41.99921]
[1735379030932,0.2986,3354.4,3354.3,46.68247141]
[1735379031731,0.2986,3354.4,3354.3,55.36719739]
[1735379032028,0.2986,3354.4,3354.3,55.06858739]
[1735379032426,0.2986,3354.4,3354.3,41.99921]
[1735379032627,0.2986,3354.4,3354.3,1.19921]
[1735379033031,0.2986,3354.4,3354.3,5.87704148]
[1735379034434,1.04663955,3354.5,3354.4,0.2986]
[1735379036434,1.04663955,3354.5,3354.4,0.30046813]
[1735379036734,0.74803955,3354.5,3354.4,0.30046813]
[1735379039837,0.74803955,3354.5,3354.4,4.97829961]
[1735379040036,1.04662955,3354.5,3354.4,4.67969961]
[1735379041232,1.04662955,3354.5,3354.4,0.00186813]
[1735379042942,1.04662955,3354.5,3354.4,1.21036813]
[1735379043143,1.04662955,3354.5,3354.4,1.64546813]
[1735379045746,1.04662955,3354.5,3354.4,6.32329961]
[1735379049042,0.74803955,3354.5,3354.4,6.32329961]
[1735379050044,0.74803955,3354.5,3354.4,1.64546813]
[1735379050638,1.04662955,3354.5,3354.4,1.34686813]
[1735379051646,1.04662955,3354.5,3354.4,0.00186813]
[1735379057249,1.50062955,3354.5,3354.4,0.00186813]
[1735379057447,0.29863,3354.1,3354.0,3.2078]
[1735379057649,0.29865,3353.9,3353.8,4.67783148]
[1735379057854,1.04668955,3353.9,3353.8,4.67783148]
[1735379058452,1.48378955,3353.9,3353.8,4.67783148]
[1735379058652,1.18513955,3353.9,3353.5,3.6704]
[1735379058845,0.29867,3353.6,3353.5,3.6704]
[1735379060251,1.04670955,3353.6,3353.5,3.6704]
[1735379063559,1.04670955,3353.6,3353.5,3.96908]
[1735379064453,1.04670955,3353.6,3353.5,3.6704]
[1735379064759,1.04670955,3353.6,3353.5,3.96908]
[1735379067962,1.04670955,3353.6,3353.5,0.76128]
[1735379081268,0.74803955,3353.6,3353.5,0.76128]
[1735379082973,0.72824,3354.0,3353.9,0.29865]
[1735379083268,1.47627955,3354.0,3353.9,0.29865]
[1735379084070,0.29865,3353.9,3353.8,0.29865]
[1735379084269,1.04668955,3353.9,3353.8,0.29865]
[1735379086362,0.74803955,3353.9,3353.5,0.4626]
[1735379086564,0.29866,3353.8,3353.7,0.29866]
[1735379087669,0.29867,3353.7,3353.6,0.29867]
[1735379087972,0.74803955,3353.7,3353.6,0.29867]
[1735379089563,1.04670955,3353.7,3353.6,0.29867]
[1735379090378,0.74803955,3353.7,3353.5,8.34823148]
[1735379090578,0.72467,3353.6,3353.5,7.88563148]
[1735379090879,1.63767,3353.6,3353.5,4.67783148]
[1735379091374,0.2987,3353.3,3353.2,0.893]
[1735379096780,0.2987,3353.3,3353.2,5.57083148]
[1735379099784,0.2987,3353.3,3353.2,5.11383148]
[1735379100994,0.2987,3353.3,3353.2,5.41254148]
[1735379101691,0.2987,3353.3,3353.2,7.08415942]
[1735379102296,0.2987,3353.3,3353.2,6.78544942]
[1735379102498,0.2987,3353.3,3353.2,0.73471]
[1735379103397,0.2987,3353.3,3353.2,5.41748025]
[1735379103588,1.04673955,3353.3,3353.2,5.41748025]
[1735379104091,0.74803955,3353.3,3353.2,5.41748025]
[1735379104295,3.2078,3354.3,3353.2,12.53523406]
[1735379104493,1.04668955,3353.9,3353.8,0.29865]
[1735379105195,1.04668955,3353.9,3353.8,0.75345]
[1735379105398,1.04668955,3353.9,3353.8,5.43321419]
[1735379106301,0.74803955,3353.9,3353.8,5.43321419]
[1735379106502,0.74803955,3353.9,3353.8,7.10027818]
[1735379107409,0.74803955,3353.9,3353.8,14.12303293]
[1735379107701,0.4499,3354.2,3354.1,0.29863]
[1735379107903,0.74852,3354.2,3354.1,0.29863]
[1735379108097,0.74852,3354.2,3353.8,13.82438293]
[1735379108403,0.74852,3354.2,3354.0,0.29863]
[1735379108995,0.4499,3354.2,3354.1,0.29863]
[1735379109197,1.49655955,3354.2,3354.1,0.29863]
[1735379109395,1.49655955,3354.2,3354.0,0.29863]
[1735379109604,0.74803955,3354.1,3354.0,0.29863]
[1735379111103,0.74803955,3354.1,3354.0,4.97659452]
[1735379111408,2.51268521,3354.9,3354.0,4.97659452]
[1735379111409,3.2078,3354.7,3354.0,12.88576452]
[1735379111600,0.74803955,3354.5,3354.4,0.2986]
[1735379112003,0.74803955,3354.5,3354.4,41.0986]
[1735379112908,0.74803955,3354.5,3354.4,41.5679]
[1735379114100,3.95583955,3354.7,3354.6,0.29859]
[1735379114803,4.25441955,3354.7,3354.6,0.29859]
[1735379116004,4.25441955,3354.7,3354.4,0.4693]
[1735379116204,3.50638,3354.7,3354.5,0.29859]
[1735379117309,3.50638,3354.7,3354.6,0.4256]
[1735379117508,4.25441955,3354.7,3354.6,0.4256]
[1735379117905,0.29859,3354.5,3354.4,0.4693]
[1735379118106,1.04662955,3354.5,3354.4,0.4693]
[1735379119308,0.29859,3354.5,3354.4,0.4693]
[1735379119506,1.04662955,3354.5,3354.4,0.4693]
[1735379122512,0.74803955,3354.5,3354.4,0.7679]
[1735379122911,0.74803955,3354.5,3354.4,0.4693]
[1735379122912,1.04662955,3354.5,3354.4,0.4693]
[1735379123410,0.29862,3354.3,3354.2,0.29862]
[1735379123613,1.04665955,3354.3,3354.2,0.29862]
[1735379126609,1.04665955,3354.3,3354.1,0.4256]
[1735379126610,0.468,3354.6,3354.1,0.4256]
[1735379126809,1.04663955,3354.5,3354.4,0.2986]
[1735379127712,0.76659,3354.6,3354.5,0.29859]
[1735379129712,0.468,3354.6,3354.3,0.4359]
[1735379130016,0.2986,3354.5,3354.4,0.2986]
[1735379130513,0.2986,3354.5,3354.4,41.0986]
[1735379130713,0.76659,3354.6,3354.5,0.29859]
[1735379130913,1.21603955,3354.6,3354.5,0.29859]
[1735379131112,0.74803955,3354.6,3354.5,0.29859]
[1735379131314,0.74803955,3354.6,3354.4,41.2332]
[1735379131315,0.29858,3354.7,3354.6,0.29858]
[1735379131516,1.04660955,3354.8,3354.7,1.20058]
[1735379133718,3.95583955,3355.0,3354.7,0.902]
[1735379133907,4.25438955,3355.0,3354.9,0.29856]
[1735379134113,3.95583955,3355.0,3354.7,0.902]
[1735379134313,0.29856,3354.9,3354.8,0.29856]
[1735379134518,4.25438955,3355.0,3354.9,0.29856]
[1735379135712,0.29856,3354.9,3354.8,0.29856]
[1735379138619,0.29856,3354.9,3354.8,0.29857]
[1735379139719,0.74803955,3355.0,3354.7,0.902]
[1735379139924,0.74803955,3354.8,3354.7,1.20057]
[1735379141010,0.29859,3354.6,3354.5,3.2078]
[1735379141214,0.29859,3354.6,3354.4,0.73179]
[1735379141215,1.04662955,3354.6,3354.4,0.2986]
[1735379141514,0.29859,3354.5,3354.4,0.2986]
[1735379142216,1.04662955,3354.6,3354.5,0.29859]
[1735379143421,0.74803955,3354.6,3354.1,3.2078]
[1735379143617,1.04665955,3354.2,3354.1,3.2078]
[1735379143813,0.74803955,3354.2,3354.1,3.50643]
[1735379144522,1.21513955,3354.2,3354.1,3.50643]
[1735379147124,0.74803955,3354.2,3354.1,3.50643]
[1735379148124,0.4303,3354.4,3354.3,0.29861]
[1735379148325,0.4538,3354.7,3354.1,3.2078]
[1735379148326,1.20183955,3354.7,3354.6,0.29859]
[1735379148626,1.93071955,3354.7,3354.6,0.29859]
[1735379149526,1.63213955,3354.7,3354.6,0.29859]
[1735379149824,0.74803955,3354.7,3354.6,0.29859]
[1735379150225,0.74803955,3354.7,3354.6,0.72659]
[1735379150524,0.74803955,3354.7,3354.6,5.40455452]
[1735379153420,0.74803955,3354.7,3354.6,11.74698969]
[1735379154226,1.04661955,3354.7,3354.6,11.74698969]
[1735379154620,1.04661955,3354.7,3354.6,0.72659]
[1735379156128,0.29859,3354.6,3354.5,0.29859]
[1735379156424,1.50122955,3354.6,3354.5,0.29859]
[1735379158422,1.20263955,3354.6,3354.3,0.4674]
[1735379158621,1.20263955,3354.6,3354.3,0.29861]
[1735379158622,1.04663955,3354.4,3354.3,0.29861]
[1735379159431,1.04663955,3354.4,3354.2,3.50642]
[1735379159432,0.29861,3354.3,3354.2,3.50642]
[1735379160728,1.49314955,3354.4,3354.3,0.29861]
[1735379162228,1.04664955,3354.4,3354.3,13.66834588]
[1735379163328,1.51114955,3354.4,3354.3,13.66834588]
[1735379163828,1.51114955,3354.4,3354.3,6.64559113]
[1735379164629,1.51114955,3354.4,3354.3,6.34698113]
[1735379165826,1.51113955,3354.4,3354.3,4.67912847]
[1735379167931,0.29861,3354.3,3354.2,3.2078]
[1735379171529,0.29864,3354.0,3353.9,0.29864]
[1735379171731,1.04667955,3354.0,3353.9,0.29864]
[1735379172725,1.04667955,3354.0,3353.7,3.6466]
[1735379172726,0.74803955,3354.0,3353.7,3.6466]
[1735379172930,1.04669955,3353.8,3353.7,3.94526]
[1735379173332,1.04669955,3353.8,3353.7,44.74526]
[1735379173536,1.49059955,3353.8,3353.7,44.74526]
[1735379173923,1.49059955,3353.8,3353.7,44.0078]
[1735379174332,1.49059955,3353.8,3353.7,40.8]
[1735379175229,1.19193955,3353.8,3353.7,40.8]
[1735379175434,0.74803955,3353.8,3353.7,41.09867]
[1735379175729,0.74803955,3354.0,3353.7,40.8]
[1735379175932,0.74803955,3354.0,3353.9,0.29865]
[1735379176329,0.74803955,3354.0,3353.9,0.74115]
[1735379177137,1.04667955,3354.0,3353.9,0.74115]
[1735379177836,0.29866,3353.8,3353.7,45.47912847]
[1735379178029,1.04669955,3353.8,3353.7,45.47912847]
[1735379178434,1.48339955,3353.8,3353.7,45.47912847]
[1735379178825,1.48339955,3353.8,3353.7,40.8]
[1735379179242,0.29867,3353.6,3353.5,4.67912847]
[1735379179436,1.04670955,3353.6,3353.5,4.67912847]
[1735379180336,0.2987,3353.3,3353.2,40.8]
[1735379181040,1.206,3353.3,3353.2,40.8]
[1735379181840,2.78803637,3353.3,3353.2,40.8]
[1735379182441,0.29872,3353.1,3352.9,0.29873]
[1735379182841,0.29872,3353.1,3353.0,40.8]
[1735379183243,0.4589,3353.2,3353.0,41.09873]
[1735379183542,2.34283637,3353.3,3353.2,0.29871]
[1735379183741,4.78983637,3353.6,3353.0,40.8]
[1735379183941,0.4232,3353.5,3353.4,0.29869]
[1735379184644,0.72188,3353.5,3353.4,0.29869]
[1735379185146,0.72188,3353.5,3353.1,3.2078]
[1735379185436,0.72188,3353.5,3353.3,0.2987]
[1735379185641,0.72188,3353.5,3353.4,0.4529]
[1735379185839,0.72188,3353.5,3353.4,0.9209]
[1735379186041,0.72188,3353.5,3353.4,0.4529]
[1735379186342,0.2987,3353.3,3353.2,0.468]
[1735379186542,1.88073637,3353.3,3353.2,0.468]
[1735379186746,0.29871,3353.2,3353.1,0.4529]
[1735379188753,1.58203637,3353.3,3353.1,0.4529]
[1735379188942,1.58203637,3353.3,3353.1,0.75161]
[1735379189138,0.29871,3353.2,3353.1,0.4529]
[1735379189642,1.58203637,3353.3,3353.1,0.4529]
[1735379189643,1.88074637,3353.3,3353.1,0.75161]
[1735379189943,3.2078,3353.6,3353.4,0.29869]
[1735379189944,5.08851637,3353.6,3353.4,0.29869]
[1735379190154,1.167,3354.0,3353.5,0.436]
[1735379190155,0.4626,3353.8,3353.5,0.436]
[1735379190450,4.78983637,3354.0,3353.9,0.29865]
[1735379190654,3.2078,3354.0,3353.9,0.29865]
[1735379191349,3.2078,3354.0,3353.7,0.4534]
[1735379191350,0.29865,3353.9,3353.7,0.75206]
[1735379191550,3.2078,3354.0,3353.9,0.29865]
[1735379192252,3.50644,3354.0,3353.8,0.29865]
[1735379192953,3.50644,3354.0,3353.9,0.29865]
[1735379193450,1.58203637,3354.3,3353.7,0.4534]
[1735379193656,0.29863,3354.2,3354.0,0.29863]
[1735379194048,1.58203637,3354.6,3354.1,0.4582]
[1735379194251,3.2078,3354.9,3354.2,0.4236]
[1735379194453,3.2078,3354.9,3354.3,0.4663]
[1735379194454,4.78983637,3354.9,3354.3,0.4663]
[1735379194657,5.08839637,3354.9,3354.7,0.29857]
[1735379194843,5.08839637,3354.9,3354.8,0.4314]
[1735379194844,4.78983637,3354.9,3354.8,0.4314]
[1735379195050,4.78983637,3354.9,3354.8,0.72997]
[1735379198343,1.58203637,3354.9,3354.8,0.72997]
[1735379201253,1.88059637,3354.9,3354.8,0.4314]
[1735379201456,1.88059637,3354.9,3354.7,0.29857]
[1735379201655,1.88059637,3354.9,3354.8,0.29857]
[1735379202352,0.29858,3354.7,3354.5,3.50639]
[1735379202654,0.29859,3354.6,3354.5,3.50639]
[1735379203357,1.88062637,3354.6,3354.4,0.2986]
[1735379203764,1.58203637,3354.6,3354.3,0.4663]
[1735379203958,0.2986,3354.4,3354.3,0.4663]
[1735379205956,0.7514,3354.5,3354.3,0.76491]
[1735379206156,1.58203637,3354.9,3354.3,0.4663]
[1735379206457,0.29858,3354.7,3354.5,0.29859]
[1735379206760,1.58203637,3354.6,3354.5,0.29859]
[1735379207258,1.88062637,3354.6,3354.5,41.09859]
[1735379207762,0.29859,3354.5,3354.4,0.7525]
[1735379208052,1.58203637,3354.6,3354.3,0.4663]
[1735379208260,0.2986,3354.4,3354.3,0.4663]
[1735379208761,1.58203637,3354.6,3354.3,0.4663]
[1735379208961,1.58203637,3354.6,3354.5,0.29859]
[1735379209160,1.58203637,3354.6,3354.3,0.4663]
[1735379209363,0.2986,3354.4,3354.3,0.4663]
[1735379209956,0.2986,3354.5,3354.4,0.2986]
[1735379210163,0.2986,3354.4,3354.3,0.76491]
[1735379210460,1.58203637,3354.6,3354.3,0.4663]
[1735379210661,0.2986,3354.5,3354.4,0.2986]
[1735379211556,0.2986,3354.4,3354.3,0.76491]
[1735379211755,0.2986,3354.4,3354.3,0.4663]
[1735379212653,0.7421,3354.4,3354.3,0.4663]
[1735379212859,0.7421,3354.4,3354.3,0.76491]
[1735379213061,0.4435,3354.4,3354.1,44.0078]
[1735379213262,1.88065637,3354.2,3354.1,44.0078]
[1735379213562,1.88065637,3354.2,3354.1,44.30643]
[1735379214062,1.88065637,3354.2,3354.1,3.50643]
[1735379214358,0.4328,3354.3,3354.1,3.2078]
[1735379214564,0.4435,3354.4,3354.3,0.29861]
[1735379215066,1.88060637,3354.8,3354.7,0.29857]
[1735379215557,0.29858,3354.7,3354.6,0.29858]
[1735379216158,0.29859,3354.6,3354.3,0.4365]
[1735379216363,0.29859,3354.6,3354.5,0.29859]
[1735379216667,0.29861,3354.4,3354.3,0.29861]
[1735379216859,1.88064637,3354.4,3354.3,0.29861]
[1735379217565,1.58203637,3354.4,3354.3,0.29861]
[1735379219766,1.88061637,3354.7,3354.6,0.29858]
[1735379220261,1.58203637,3354.7,3354.6,0.29858]
[1735379220765,0.29857,3354.8,3354.7,0.29857]
[1735379221258,1.3339,3354.9,3354.7,0.29857]
[1735379221465,0.29857,3354.8,3354.7,0.29857]
[1735379221661,0.29858,3354.7,3354.6,0.4268]
[1735379221875,1.88061637,3354.7,3354.5,3.50639]
[1735379222164,1.58203637,3354.7,3354.5,3.2078]
[1735379222366,1.58203637,3354.7,3354.6,0.29859]
[1735379224373,1.88061637,3354.7,3354.6,0.29859]
[1735379230373,1.3339,3354.9,3354.8,0.29857]
[1735379230374,0.4533,3354.9,3354.8,0.29857]
[1735379230775,5.08838637,3355.0,3354.9,0.29856]
[1735379233877,4.78983637,3355.0,3354.9,0.29856]
[1735379234169,5.08838637,3355.0,3354.9,0.29856]
[1735379236574,0.29856,3354.9,3354.8,0.29856]
[1735379236777,0.74176,3354.9,3354.8,0.29856]
[1735379239380,0.74176,3354.9,3354.8,0.75906]
[1735379239582,0.4432,3354.9,3354.8,0.75906]
[1735379239776,3.2078,3355.0,3354.8,0.8882]
[1735379239978,3.2078,3355.0,3354.9,0.73026]
[1735379241475,3.2078,3355.0,3354.9,14.10116062]
[1735379243682,3.2078,3355.5,3355.4,0.29851]
[1735379243876,3.5063,3355.5,3355.4,0.29851]
[1735379244277,3.2078,3355.5,3354.9,7.07840587]
[1735379244577,1.20342,3355.4,3355.3,0.29851]
[1735379244778,1.20342,3355.4,3355.3,4.97571403]
[1735379245684,1.20342,3355.4,3355.3,0.29851]
[1735379253984,0.9049,3355.4,3355.0,5.14490403]
[1735379254185,0.29854,3355.1,3355.0,4.67720403]
[1735379255886,0.29855,3355.0,3354.9,0.29856]
[1735379256489,0.29856,3354.9,3354.8,4.97576403]
[1735379256689,0.74656,3354.9,3354.8,4.97576403]
[1735379256889,0.74656,3354.9,3354.8,0.29856]
[1735379257091,0.74656,3354.9,3354.8,41.09856]
[1735379257693,0.448,3354.9,3354.8,41.09856]
[1735379258194,0.8931,3354.9,3354.8,41.09856]
[1735379258398,1.19166,3354.9,3354.8,41.09856]
[1735379260798,1.19166,3354.9,3354.8,45.77576403]
[1735379261496,2.77369637,3354.9,3354.8,45.47720403]
[1735379261700,2.77369637,3354.9,3354.8,4.67720403]
[1735379262206,7.77369637,3354.9,3354.8,2.56250403]
[1735379262394,7.77369637,3354.9,3354.8,1.41836942]
[1735379263202,7.77369637,3354.9,3354.3,3.2078]
[1735379263203,0.2986,3354.4,3354.3,3.2078]
[1735379263405,1.88063637,3354.4,3354.3,3.2078]
[1735379264812,1.88063637,3354.4,3354.3,3.6601]
[1735379268110,1.88063637,3354.4,3354.3,3.95871]
[1735379268710,1.88063637,3354.4,3354.3,3.6601]
[1735379271613,1.88063637,3354.4,3354.3,4.1082]
[1735379273714,1.88063637,3354.4,3354.3,0.9004]
[1735379275318,1.88063637,3354.4,3354.3,1.19901]
[1735379275618,1.88063637,3354.4,3354.3,0.9004]
[1735379275917,1.04686177,3354.4,3354.3,0.9004]
[1735379276116,1.04686177,3354.4,3354.3,1.19901]
[1735379276918,1.04686177,3354.4,3354.3,41.99901]
[1735379278306,1.04686177,3354.4,3354.3,1.19901]
[1735379279023,1.04686177,3354.4,3354.3,41.99901]
[1735379280015,0.29859,3354.6,3354.4,0.2986]
[1735379280216,0.29859,3354.6,3354.5,0.75789]
[1735379283024,0.74826177,3354.6,3354.5,0.75789]
[1735379283327,1.04685177,3354.6,3354.5,0.75789]
[1735379284229,1.04685177,3354.6,3354.5,0.4593]
[1735379287124,1.04685177,3354.6,3354.5,0.75789]
[1735379289825,1.04685177,3354.6,3354.5,0.4593]
[1735379293825,0.74826177,3354.6,3354.3,0.9004]
[1735379294025,1.04686177,3354.4,3354.3,0.9004]
[1735379298318,1.04686177,3354.4,3354.1,3.6386]
[1735379298319,0.29862,3354.2,3354.1,3.6386]
[1735379300832,1.04688177,3354.2,3354.1,3.6386]
[1735379302234,1.04688177,3354.2,3354.1,44.4386]
[1735379303047,1.04688177,3354.2,3354.1,41.2308]
[1735379303231,1.04688177,3354.2,3354.1,44.4386]
[1735379303936,1.04688177,3354.2,3354.1,44.73723]
[1735379304234,1.04688177,3354.2,3354.1,44.4386]
[1735379304830,1.04687177,3354.4,3354.1,44.73723]
[1735379305139,0.74826177,3354.5,3354.3,0.29861]
[1735379305330,1.04685177,3354.5,3354.4,0.4544]
[1735379312253,0.29859,3354.5,3354.4,0.753]
[1735379314440,0.29859,3354.5,3354.4,0.4544]
[1735379314943,1.04685177,3354.5,3354.4,0.4544]
[1735379316743,0.29859,3354.5,3354.4,0.4544]
[1735379329139,0.2986,3354.4,3354.3,7.02275475]
[1735379329843,0.2986,3354.4,3354.3,13.29613624]
[1735379331043,3.95606177,3354.5,3354.2,0.4315]
[1735379331340,1.04687177,3354.3,3354.2,0.4315]
[1735379337749,0.29861,3354.3,3354.2,0.73012]
[1735379338853,0.29861,3354.3,3354.2,0.4315]
[1735379342543,3.95606177,3354.5,3354.2,0.4315]
[1735379342849,1.04686177,3354.5,3354.4,0.2986]
[1735379343646,0.74826177,3354.5,3354.2,13.72872582]
[1735379343947,0.29861,3354.4,3354.3,0.29861]
[1735379344351,1.04686177,3354.5,3354.4,0.2986]
[1735379346448,1.04686177,3354.5,3354.2,7.45425475]
[1735379346649,1.04686177,3354.5,3354.3,7.32135475]
[1735379346954,0.2986,3354.4,3354.3,7.32135475]
[1735379347342,0.74826177,3354.5,3354.4,0.2986]
[1735379347549,0.29858,3354.7,3354.3,7.02275475]
[1735379347954,0.29858,3354.7,3354.3,6.27409884]
[1735379348454,0.29858,3354.7,3354.5,0.29859]
[1735379348754,0.29858,3354.7,3354.6,0.9094]
[1735379348951,0.29858,3354.7,3354.6,1.3329]
[1735379350054,0.29858,3354.7,3354.6,1.63149]
[1735379355360,1.04684177,3354.7,3354.6,1.63149]
[1735379357556,0.74826177,3354.7,3354.6,1.63149]
[1735379357959,1.04684177,3354.7,3354.6,1.63149]
[1735379364062,3.2078,3354.9,3354.6,1.3329]
[1735379364266,3.2078,3354.9,3354.8,0.29857]
[1735379364565,1.04678177,3355.3,3354.8,0.74826177]
[1735379364862,0.74826177,3355.3,3354.8,0.74826177]
[1735379365067,4.25457177,3355.5,3355.3,0.29852]
[1735379365362,4.25456177,3355.5,3355.4,1.3511]
[1735379369067,3.95606177,3355.5,3354.8,7.02275475]
[1735379369268,0.29853,3355.2,3355.0,0.29855]
[1735379370166,3.2078,3355.5,3355.0,0.29855]
[1735379370371,1.04681177,3355.1,3354.9,1.61585]
[1735379370580,1.04681177,3355.1,3354.9,1.3173]
[1735379370763,1.04681177,3355.1,3355.0,0.29855]
[1735379371662,1.04681177,3355.1,3354.9,1.61585]
[1735379372162,0.29855,3355.0,3354.9,1.61585]
[1735379372359,0.74826177,3355.1,3354.9,1.61585]
[1735379372563,1.04680177,3355.1,3355.0,0.29855]
[1735379372871,1.04680177,3355.1,3354.9,1.3173]
[1735379372872,0.29855,3355.0,3354.9,1.61585]
[1735379374473,0.29855,3355.0,3354.9,1.3173]
[1735379374772,0.29857,3354.8,3354.6,0.29858]
[1735379374965,0.74826177,3354.7,3354.6,1.15479]
[1735379375673,0.29857,3354.9,3354.6,1.15479]
[1735379375674,1.04683177,3354.9,3354.6,0.8562]
[1735379375875,1.04683177,3354.9,3354.8,0.29857]
[1735379376073,3.2078,3355.5,3354.6,1.60446177]
[1735379376275,0.74826177,3355.2,3355.1,0.29854]
[1735379377370,1.04677177,3355.4,3355.3,0.29852]
[1735379377672,3.2078,3355.5,3355.4,0.29851]
[1735379385585,3.5063,3355.5,3355.4,0.29851]
[1735379387882,0.29853,3355.3,3355.2,0.29853]
[1735379388083,0.74826177,3355.3,3355.1,0.4234]
[1735379388281,0.29853,3355.2,3355.1,0.72194]
[1735379391184,0.74826177,3355.3,3355.1,0.4234]
[1735379391385,1.04678177,3355.3,3355.2,0.29853]
[1735379391689,0.29852,3355.3,3355.2,0.29853]
[1735379392091,0.74826177,3355.5,3355.4,0.29851]
[1735379394690,0.74826177,3355.7,3355.2,0.74826177]
[1735379394886,0.74826177,3355.7,3355.6,0.2985]
[1735379395187,1.04675177,3355.7,3355.6,0.2985]
[1735379395981,0.74826177,3355.7,3355.6,0.2985]
[1735379396176,0.2985,3355.6,3355.5,0.2985]
[1735379396380,1.04676177,3355.6,3355.5,0.2985]
[1735379396581,1.04676177,3355.6,3355.5,0.7595]
[1735379398785,1.04676177,3355.6,3355.5,0.461]
[1735379398992,1.04676177,3355.6,3355.5,0.7595]
[1735379400597,0.29852,3355.3,3355.2,0.29853]
[1735379400779,1.04678177,3355.3,3355.2,0.72343]
[1735379401292,0.74826177,3355.3,3355.2,0.72343]
[1735379401589,1.04678177,3355.3,3355.2,0.72343]
[1735379402285,0.74826177,3355.3,3355.2,0.72343]
[1735379402486,1.04676177,3355.7,3355.6,0.29849]
[1735379403391,3.2078,3356.5,3355.6,0.74826177]
[1735379403593,0.29843,3356.4,3356.2,0.29844]
[1735379403793,1.04668177,3356.5,3356.4,0.29842]
[1735379403990,0.29842,3356.4,3356.3,1.19513]
[1735379404188,0.74826177,3356.5,3356.3,0.8967]
[1735379404495,1.04668177,3356.5,3356.3,1.19513]
[1735379405790,0.29842,3356.5,3356.3,1.19513]
[1735379406300,2.32024508,3356.7,3356.5,0.29841]
[1735379406590,0.44305,3356.7,3356.6,0.29841]
[1735379409902,3.2078,3356.9,3356.8,0.29839]
[1735379410095,0.29836,3357.2,3357.1,0.29836]
[1735379410594,0.29835,3357.3,3357.1,0.29836]
[1735379410792,0.29835,3357.3,3357.2,0.4303]
[1735379415004,1.87714508,3357.3,3357.2,0.4303]
[1735379415695,1.57879508,3357.3,3356.8,0.29839]
[1735379416004,0.29838,3357.0,3356.7,0.76759]
[1735379416194,1.57879508,3357.3,3356.7,0.4692]
[1735379416400,1.57879508,3357.0,3356.7,0.4692]
[1735379416600,0.29839,3356.8,3356.7,0.4692]
[1735379419298,0.29839,3356.8,3356.7,0.7676]
[1735379419698,0.29839,3356.8,3356.7,0.4692]
[1735379419897,0.29839,3356.9,3356.7,0.7676]
[1735379420105,0.29839,3356.8,3356.7,0.4692]
[1735379420604,0.29839,3356.8,3356.7,0.7676]
[1735379420806,1.57879508,3357.3,3356.8,0.29839]
[1735379421105,0.29838,3356.9,3356.8,0.29839]
[1735379421401,0.29839,3356.8,3356.7,0.4692]
[1735379423001,0.29837,3357.1,3356.7,0.4692]
[1735379423200,1.57879508,3357.3,3356.7,0.4692]
[1735379423506,0.29836,3357.2,3357.0,0.29837]
[1735379423907,0.29836,3357.2,3357.1,0.8747]
[1735379424407,0.29835,3357.2,3357.1,0.8747]
[1735379424708,4.78659508,3357.6,3357.1,0.8747]
[1735379425407,0.29835,3357.2,3357.1,0.8747]
[1735379431710,4.78659508,3357.6,3356.7,0.4692]
[1735379431918,0.29839,3356.8,3356.7,0.4692]
[1735379433005,2.03839508,3357.0,3356.6,3.2078]
[1735379433213,1.57879508,3356.7,3356.3,0.4354]
[1735379433412,1.87721508,3356.4,3356.3,0.4354]
[1735379433613,0.29845,3356.1,3356.0,3.2078]
[1735379433813,0.29845,3356.1,3356.0,3.6432]
[1735379434814,0.29845,3356.1,3356.0,0.4354]
[1735379441221,1.87724508,3356.1,3356.0,0.4354]
[1735379449922,0.29845,3356.1,3356.0,0.73386]
[1735379450122,0.29844,3356.3,3356.1,0.29844]
[1735379450323,0.29844,3356.3,3356.2,0.9281]
[1735379456229,0.29844,3356.3,3356.2,0.4694]
[1735379456829,1.87723508,3356.3,3356.2,0.4694]
[1735379465634,0.29844,3356.3,3356.2,0.4694]
[1735379469133,3.2078,3356.4,3356.3,0.29843]
[1735379469338,2.5032,3356.4,3356.3,0.29843]